bitfinex-derivatives/quotes_ETHF0:USTF0_20250103
["timestamp","ask_amount","ask_price","bid_price","bid_amount"]
[1735917183534,0.52101531,3533.1,3532.0,3.2078]
[1735917183836,1.336,3533.1,3532.4,3.2078]
[1735917184145,1.336,3533.1,3532.0,3.2078]
[1735917184445,3.2078,3533.0,3532.0,3.2078]
[1735917184637,3.67302272,3533.0,3532.0,3.2078]
[1735917184940,0.46522272,3533.0,3532.6,0.28326]
[1735917185133,3.2078,3532.9,3532.0,3.2078]
[1735917185530,3.67302272,3532.9,3532.1,0.70825]
[1735917185737,0.46522272,3532.9,3532.0,3.2078]
[1735917186034,1.336,3533.0,3532.0,3.2078]
[1735917186233,0.28329,3532.2,3532.0,3.2078]
[1735917186438,1.17333272,3532.8,3531.6,3.2078]
[1735917186633,0.28333,3531.7,3531.6,3.49113]
[1735917186834,3.2078,3532.5,3531.6,3.49113]
[1735917186835,3.2078,3532.5,3531.6,3.2078]
[1735917187037,0.28331,3532.0,3531.9,0.28331]
[1735917187239,0.46522272,3532.4,3531.6,3.2078]
[1735917187439,0.28332,3531.8,3531.7,0.28332]
[1735917187639,1.17281,3532.3,3531.6,3.2078]
[1735917187835,0.28333,3531.7,3531.6,3.49113]
[1735917188037,0.28338,3531.1,3531.0,3.2078]
[1735917188436,0.46522272,3531.6,3531.0,3.2078]
[1735917188937,0.46522272,3532.2,3531.0,3.2078]
[1735917189138,0.46522272,3532.2,3532.1,0.2833]
[1735917189333,1.8006,3532.3,3532.2,0.28329]
[1735917189541,0.74788,3532.3,3531.7,0.70833]
[1735917189742,0.4646,3532.3,3531.5,0.9516]
[1735917189945,0.74789,3532.3,3532.1,0.28329]
[1735917190140,0.4646,3532.3,3531.6,0.70835]
[1735917190341,0.28329,3532.2,3532.1,0.28329]
[1735917190541,0.2833,3532.1,3532.0,0.2833]
[1735917190736,0.28331,3531.9,3531.8,3.2078]
[1735917190950,0.4646,3532.3,3531.8,3.2078]
[1735917191144,0.28329,3532.2,3532.1,0.28329]
[1735917191440,1.336,3532.6,3532.5,0.28326]
[1735917193250,1.61926,3532.6,3532.4,0.28327]
[1735917193441,1.61926,3532.6,3531.9,0.70829]
[1735917193643,1.61926,3532.6,3532.4,0.28327]
[1735917193843,1.336,3532.6,3532.5,0.28326]
[1735917194243,1.336,3532.6,3531.8,3.2078]
[1735917194244,0.49149024,3532.8,3532.7,0.28325]
[1735917194446,1.336,3533.2,3532.6,3.2078]
[1735917194641,1.336,3533.2,3533.1,0.28322]
[1735917195150,1.336,3533.2,3532.7,0.5192]
[1735917195151,1.336,3533.2,3532.9,0.28323]
[1735917195351,1.336,3533.2,3532.7,0.5192]
[1735917195646,1.336,3533.2,3523.5,0.11846319]
[1735917195647,0.0201,3533.1,3532.1,3.2078]
[1735917195845,3.2078,3532.8,3532.1,3.2078]
[1735917196156,0.4757,3532.7,3532.3,0.28327]
[1735917196451,0.4757,3532.7,3532.4,0.28327]
[1735917196452,0.28326,3532.6,3532.4,0.28327]
[1735917196755,0.92493776,3532.7,3532.1,3.2078]
[1735917197250,0.44923776,3532.7,3532.6,0.28326]
[1735917197442,0.28323,3533.0,3532.1,3.2078]
[1735917197642,0.46933776,3533.1,3532.9,0.28323]
[1735917197842,0.30332,3533.1,3532.9,0.28323]
[1735917198039,0.0201,3533.1,3532.5,3.2078]
[1735917198446,0.0201,3533.1,3533.0,0.28322]
[1735917199051,0.5105,3533.8,3532.9,3.2078]
[1735917199255,41.24923776,3533.9,3533.4,0.70799]
[1735917199454,0.44923776,3533.8,3533.7,3.49097]
[1735917199652,0.5104,3534.3,3534.2,0.28313]
[1735917199947,0.28315,3534.0,3533.8,0.28315]
[1735917200249,0.44923776,3534.3,3534.2,0.28313]
[1735917200451,8.97232619,3535.1,3533.8,0.70791]
[1735917200452,0.44923776,3534.8,3533.8,3.2078]
[1735917200650,40.8,3534.7,3534.5,0.2831]
[1735917200849,0.44923776,3534.6,3533.8,3.2078]
[1735917201049,0.44923776,3534.6,3533.9,3.2078]
[1735917201248,0.28312,3534.3,3534.0,0.28314]
[1735917201448,3.2078,3534.2,3533.6,0.4899]
[1735917201746,3.2078,3534.2,3533.7,0.28317]
[1735917201747,0.28315,3534.0,3533.7,0.28317]
[1735917201951,3.65703776,3534.2,3533.6,0.4899]
[1735917202248,3.65703776,3534.2,3534.0,0.28314]
[1735917202249,0.44923776,3534.1,3534.0,0.28314]
[1735917202444,0.83868312,3534.6,3534.3,0.28312]
[1735917202756,0.55557954,3534.6,3534.1,0.28313]
[1735917202952,0.28312,3534.4,3534.1,0.28313]
[1735917203154,0.55557954,3534.6,3534.0,0.28314]
[1735917203155,0.28312,3534.3,3534.0,0.28314]
[1735917203356,0.28312,3534.3,3533.8,3.2078]
[1735917203357,3.2078,3534.5,3533.8,3.2078]
[1735917203549,3.2078,3534.1,3533.0,3.2078]
[1735917203761,0.2832,3533.4,3533.1,0.28321]
[1735917203958,0.55557954,3533.8,3533.0,3.2078]
[1735917204160,3.2078,3533.8,3533.0,3.2078]
[1735917204760,0.28315,3533.9,3533.6,0.28317]
[1735917204960,2.25048067,3534.0,3533.1,0.70805]
[1735917205163,2.13665,3534.0,3533.7,0.28317]
[1735917205365,1.8535,3534.0,3533.1,0.70805]
[1735917205562,1.8535,3534.0,3533.9,0.28315]
[1735917205764,1.73298067,3534.4,3533.4,3.2078]
[1735917205964,1.336,3534.4,3533.4,3.2078]
[1735917206166,0.28312,3534.3,3534.0,0.28314]
[1735917206369,1.336,3534.4,3534.3,0.28312]
[1735917206872,1.336,3534.4,3533.8,3.9157]
[1735917206873,0.4685,3534.6,3533.8,3.2078]
[1735917207062,0.28312,3534.4,3534.2,0.28313]
[1735917207566,0.4685,3534.6,3534.5,0.2831]
[1735917207760,2.49731309,3535.3,3535.1,0.28305]
[1735917207967,2.21426309,3535.3,3534.7,3.2078]
[1735917208163,42.136,3535.5,3534.7,3.2078]
[1735917208367,0.28305,3535.2,3535.0,0.28306]
[1735917208665,42.136,3535.5,3534.7,3.2078]
[1735917209059,0.28306,3535.1,3534.7,3.2078]
[1735917209260,42.136,3535.5,3534.5,0.5147]
[1735917209461,0.28309,3534.7,3534.4,0.28311]
[1735917209659,0.28309,3534.7,3534.3,0.28311]
[1735917210070,0.28309,3534.7,3534.2,3.2078]
[1735917210071,0.28309,3534.7,3534.5,0.2831]
[1735917210463,3.2078,3534.8,3534.2,3.2078]
[1735917210869,1.322,3534.7,3533.9,0.5147]
[1735917211171,3.2078,3534.4,3533.6,0.4734]
[1735917211468,0.28312,3534.4,3534.2,0.28312]
[1735917211665,2.50624,3534.7,3534.0,0.28314]
[1735917211865,0.28312,3534.3,3533.9,0.28315]
[1735917212066,0.46530633,3534.5,3533.6,0.4734]
[1735917212274,1.7985,3534.7,3533.7,0.70793]
[1735917212468,0.28313,3534.3,3534.1,0.28313]
[1735917212666,0.28311,3534.4,3533.8,3.2078]
[1735917212867,0.28312,3534.4,3533.8,3.2078]
[1735917213068,0.46530633,3534.5,3533.8,3.2078]
[1735917213373,0.28312,3534.4,3534.3,0.28312]
[1735917213576,0.28312,3534.3,3533.9,0.28315]
[1735917213773,0.28311,3534.4,3534.0,0.28314]
[1735917214076,0.28315,3534.0,3533.9,0.28315]
[1735917214374,0.46530633,3534.5,3533.6,0.4734]
[1735917214680,0.28315,3534.0,3533.6,0.4734]
[1735917214876,0.28314,3534.2,3534.0,0.28314]
[1735917215067,0.28315,3534.0,3533.7,0.28317]
[1735917215267,0.46530633,3534.5,3533.9,3.2078]
[1735917215473,0.28312,3534.3,3534.2,0.28313]
[1735917215775,1.322,3534.6,3534.5,0.2831]
[1735917215975,0.46530633,3535.0,3534.4,0.28311]
[1735917215976,0.28308,3534.8,3534.4,0.28311]
[1735917216279,0.28308,3534.8,3533.9,2.49352999]
[1735917216280,2.49352999,3535.1,3533.8,3.91571]
[1735917216579,3.2078,3535.0,3533.8,3.2078]
[1735917216780,3.2078,3534.6,3533.8,3.2078]
[1735917216970,3.2078,3533.9,3533.4,3.2078]
[1735917217276,3.2078,3533.9,3533.0,1.21906]
[1735917217277,0.28321,3533.3,3533.1,0.28321]
[1735917217578,0.28321,3533.3,3533.2,0.28321]
[1735917217875,0.96210633,3533.8,3533.0,0.511]
[1735917218076,1.24527633,3533.8,3533.6,0.28317]
[1735917218377,1.322,3534.1,3533.3,3.2078]
[1735917218575,0.46530633,3534.2,3533.7,3.2078]
[1735917218765,5.88736942,3534.5,3534.0,0.28314]
[1735917218969,0.28313,3534.2,3533.7,3.2078]
[1735917219165,0.28313,3534.2,3534.0,0.28314]
[1735917219372,0.46530633,3534.6,3533.7,3.2078]
[1735917219771,0.28312,3534.3,3534.1,0.28314]
[1735917220076,0.46530633,3534.6,3533.7,3.2078]
[1735917220272,3.2078,3534.5,3534.0,0.28314]
[1735917220572,3.2078,3534.5,3533.7,3.2078]
[1735917220779,3.67310633,3534.5,3533.7,3.2078]
[1735917220973,0.46530633,3534.5,3533.7,3.2078]
[1735917221173,0.4968,3534.7,3534.6,0.2831]
[1735917221380,0.46530633,3534.8,3534.7,0.28309]
[1735917221574,0.46530633,3534.8,3534.4,0.99088]
[1735917221768,3.2078,3534.9,3534.8,0.28308]
[1735917221976,2.21426309,3535.4,3535.3,0.28304]
[1735917222181,2.68039536,3535.4,3535.3,0.28304]
[1735917222877,2.73704191,3535.4,3535.3,0.28304]
[1735917223083,0.52277882,3535.4,3535.3,0.28304]
[1735917223376,0.52277882,3536.1,3535.3,0.28304]
[1735917223584,2.49723309,3536.2,3536.0,0.28298]
[1735917223781,2.21426309,3536.2,3535.5,0.70757]
[1735917224080,2.21426309,3536.2,3535.3,0.4701]
[1735917224081,2.21426309,3536.2,3536.1,0.28298]
[1735917224485,2.49723309,3536.2,3536.0,0.28298]
[1735917224672,2.21426309,3536.2,3536.0,0.28298]
[1735917224879,0.28297,3536.2,3536.0,0.28298]
[1735917225185,0.28296,3536.4,3536.1,0.28297]
[1735917225389,1.322,3536.7,3535.8,3.2078]
[1735917225390,1.322,3536.7,3536.2,0.28296]
[1735917225580,0.28296,3536.4,3536.2,0.28297]
[1735917225778,0.28297,3536.3,3536.0,0.28298]
[1735917226786,0.43379278,3536.6,3535.8,3.2078]
[1735917226982,0.43379278,3536.6,3535.4,3.2078]
[1735917226983,0.28298,3536.0,3535.4,3.2078]
[1735917227185,0.28298,3536.0,3535.7,0.283]
[1735917227689,3.2078,3536.3,3535.4,3.2078]
[1735917227887,3.2078,3536.3,3536.2,0.28297]
[1735917228084,3.2078,3536.6,3535.3,3.6779]
[1735917228387,3.64160354,3536.6,3535.3,3.6779]
[1735917228787,3.2078,3536.1,3535.3,0.4701]
[1735917228987,3.2078,3535.6,3534.8,3.49088]
[1735917229183,0.28304,3535.3,3535.0,0.28306]
[1735917229390,0.28304,3535.4,3534.8,3.2078]
[1735917229688,0.28305,3535.3,3535.0,0.28306]
[1735917229885,0.43380354,3535.5,3535.0,0.28306]
[1735917230086,0.43380354,3535.5,3534.9,0.5173]
[1735917230290,0.43380354,3535.5,3534.9,0.80037]
[1735917230592,0.2831,3534.6,3534.3,0.28312]
[1735917230893,1.322,3535.6,3534.2,3.2078]
[1735917231193,1.322,3535.6,3534.7,0.70773]
[1735917231194,40.8,3535.5,3534.7,0.70773]
[1735917231399,1.322,3535.6,3534.7,0.70773]
[1735917231400,1.322,3535.6,3535.0,3.2078]
[1735917231891,0.28304,3535.3,3535.1,0.28305]
[1735917232081,1.75594449,3535.6,3535.0,3.2078]
[1735917232486,0.28303,3535.5,3535.3,0.28304]
[1735917232691,1.75597169,3535.6,3535.1,0.28306]
[1735917232894,0.28304,3535.3,3535.1,0.28306]
[1735917233086,1.75597169,3535.6,3535.0,3.2078]
[1735917233291,1.75597169,3535.6,3534.8,0.5173]
[1735917233791,0.28304,3535.4,3535.2,0.28305]
[1735917233997,1.322,3535.6,3534.8,3.7251]
[1735917234193,1.322,3535.6,3535.2,3.2078]
[1735917234500,0.28303,3535.4,3535.2,0.28304]
[1735917234690,1.322,3535.6,3535.4,0.28303]
[1735917234691,0.28303,3535.5,3535.4,0.28303]
[1735917234892,1.322,3535.6,3534.8,3.7251]
[1735917235185,0.28301,3535.8,3535.6,0.28302]
[1735917235388,0.283,3535.9,3535.7,0.28301]
[1735917235591,0.5216,3536.0,3535.2,3.2078]
[1735917235796,0.5216,3536.0,3535.9,0.28299]
[1735917236000,0.4908068,3536.1,3536.0,0.28298]
[1735917236190,0.4908068,3536.2,3535.6,3.2078]
[1735917236497,0.283,3535.8,3535.4,0.28303]
[1735917236696,0.4973,3535.7,3535.2,3.2078]
[1735917236893,0.4973,3535.7,3535.6,0.28302]
[1735917237299,0.4908068,3536.4,3535.2,3.91542]
[1735917237596,0.283,3535.9,3535.2,3.2078]
[1735917237795,0.283,3535.9,3535.7,0.28301]
[1735917238096,3.2078,3536.1,3535.2,3.2078]
[1735917238396,0.28301,3535.7,3535.4,0.28303]
[1735917238696,3.2078,3536.0,3535.0,1.19845]
[1735917238888,0.4908068,3536.2,3535.2,3.2078]
[1735917239097,0.9881068,3536.3,3535.2,3.2078]
[1735917239292,0.28299,3536.0,3535.7,0.283]
[1735917239491,0.28297,3536.2,3535.9,0.28298]
[1735917239999,0.28298,3536.1,3535.8,0.283]
[1735917240198,0.283,3535.8,3535.3,0.28304]
[1735917240498,0.9881068,3536.3,3534.8,0.70769]
[1735917240499,3.2078,3536.0,3535.1,0.5011]
[1735917240692,0.28301,3535.8,3535.5,0.28302]
[1735917240892,3.49079,3536.0,3535.7,0.283]
[1735917241094,0.28299,3536.0,3535.7,0.283]
[1735917241295,0.28302,3535.7,3535.5,0.28302]
[1735917241496,0.28302,3535.6,3535.3,0.28303]
[1735917241698,3.2078,3536.1,3535.2,3.2078]
[1735917241896,3.2078,3536.1,3535.1,0.5011]
[1735917242290,0.28301,3535.7,3535.5,0.28302]
[1735917242489,0.28301,3535.8,3535.6,0.28301]
[1735917243094,3.2078,3536.1,3535.2,3.2078]
[1735917243607,1.20473,3536.3,3535.1,0.5011]
[1735917243608,3.2078,3535.7,3535.1,0.5011]
[1735917243806,0.495,3535.6,3535.1,0.5011]
[1735917244304,0.495,3535.6,3535.4,0.28303]
[1735917244502,0.495,3535.6,3535.1,0.5011]
[1735917244701,0.77802,3535.6,3535.4,0.28303]
[1735917244904,0.495,3535.6,3535.2,0.28305]
[1735917245103,0.28304,3535.4,3535.2,0.28305]
[1735917245295,1.306,3535.8,3535.7,0.28301]
[1735917245799,3.4908,3535.9,3535.7,0.28301]
[1735917246104,2.68916309,3536.2,3535.6,3.2078]
[1735917246402,0.28299,3536.0,3535.8,0.28299]
[1735917246603,0.28299,3536.0,3535.9,0.28299]
[1735917246796,0.28298,3536.1,3535.6,3.2078]
[1735917246997,0.28298,3536.1,3535.7,0.28301]
[1735917247197,0.28298,3536.1,3535.9,0.28299]
[1735917247494,0.28299,3536.0,3535.8,0.28299]
[1735917247798,0.28304,3535.3,3535.2,3.2078]
[1735917248000,2.49083458,3535.9,3535.2,3.2078]
[1735917248001,1.306,3535.7,3535.2,3.2078]
[1735917248898,1.306,3535.7,3535.2,3.49084]
[1735917248899,0.28304,3535.4,3535.2,3.49084]
[1735917249098,1.306,3535.7,3535.2,3.49085]
[1735917249099,0.28304,3535.3,3535.2,3.49085]
[1735917249294,1.306,3535.7,3535.2,3.2078]
[1735917249605,0.28305,3535.2,3535.1,0.28305]
[1735917249807,0.28305,3535.2,3535.1,0.28306]
[1735917250007,3.91535,3535.6,3535.0,0.4908]
[1735917250008,0.28303,3535.4,3535.0,0.77386]
[1735917250202,0.4764,3535.5,3535.0,0.4908]
[1735917250403,2.21426309,3535.9,3535.3,3.2078]
[1735917250605,2.49725309,3535.9,3535.8,0.283]
[1735917251106,2.21426309,3535.9,3535.8,0.283]
[1735917251308,0.28299,3536.0,3535.9,0.28298]
[1735917251503,0.283,3535.9,3535.8,0.283]
[1735917251806,0.4764,3536.1,3535.4,0.4617]
[1735917252007,0.28301,3535.8,3535.7,0.283]
[1735917252399,0.28305,3535.2,3535.0,0.4908]
[1735917252600,2.49083458,3535.5,3534.6,0.4707]
[1735917252800,0.74726,3535.1,3535.0,0.28306]
[1735917253002,1.306,3535.7,3534.9,3.2078]
[1735917253200,0.4642,3535.6,3534.9,3.2078]
[1735917253702,0.28305,3535.2,3535.1,0.28305]
[1735917253900,0.4642,3535.6,3534.6,0.4707]
[1735917254100,0.28305,3535.2,3535.1,0.28305]
[1735917254300,0.70757,3535.5,3534.6,0.4707]
[1735917254508,0.28306,3535.1,3535.0,0.28306]
[1735917255105,0.435896,3535.5,3534.6,0.4707]
[1735917255303,2.92673058,3535.5,3534.6,0.4707]
[1735917255503,2.92673058,3535.5,3534.9,3.2078]
[1735917255504,0.28304,3535.4,3534.9,3.2078]
[1735917255701,0.900096,3535.6,3534.9,3.2078]
[1735917255897,2.21426309,3535.5,3534.9,3.2078]
[1735917256102,0.28303,3535.4,3535.3,0.28304]
[1735917256309,0.28306,3535.1,3535.0,0.28306]
[1735917256504,0.435896,3535.4,3534.9,3.2078]
[1735917256703,0.435896,3535.4,3534.9,3.49087]
[1735917256906,0.28306,3535.0,3534.9,3.2078]
[1735917257097,0.718936,3535.4,3535.2,0.28305]
[1735917257301,0.28304,3535.3,3535.1,0.28305]
[1735917257696,5.42206309,3535.5,3534.9,3.2078]
[1735917257901,3.2078,3535.1,3534.6,0.4707]
[1735917258201,0.4361148,3535.3,3534.6,0.4707]
[1735917258399,0.4361148,3535.4,3534.6,0.4707]
[1735917258604,3.2078,3535.1,3534.6,0.4707]
[1735917258911,0.28309,3534.7,3534.6,0.4707]
[1735917259108,4.3515848,3535.1,3534.5,3.2078]
[1735917259403,0.2831,3534.6,3534.5,3.2078]
[1735917260309,3.2078,3534.8,3534.2,0.4596]
[1735917260507,0.28312,3534.3,3534.2,0.4596]
[1735917260809,0.28312,3534.3,3534.2,0.28313]
[1735917261010,0.28312,3534.3,3534.2,0.28312]
[1735917261212,0.28312,3534.3,3534.0,3.2078]
[1735917261213,4.00546309,3534.9,3534.0,3.2078]
[1735917261507,2.98254309,3534.9,3534.8,0.28308]
[1735917261712,2.69946309,3534.9,3534.8,0.28308]
[1735917261915,2.98253309,3534.9,3534.8,0.28308]
[1735917262109,2.69946309,3534.9,3534.8,0.28308]
[1735917262413,2.21426309,3534.9,3534.8,0.28308]
[1735917262706,0.28306,3535.1,3535.0,0.28306]
[1735917262899,0.28305,3535.2,3535.1,0.28305]
[1735917263100,2.21426309,3535.3,3535.1,3.2078]
[1735917263302,2.21426309,3535.3,3535.2,0.76945]
[1735917263505,2.80575773,3535.5,3535.2,0.4864]
[1735917263707,2.80575773,3535.7,3535.4,2.77386458]
[1735917263901,2.80575773,3535.7,3535.6,3.49082]
[1735917264106,2.80575773,3535.7,3535.6,0.28302]
[1735917264308,3.08876773,3535.7,3535.6,0.28302]
[1735917265107,14.14223,3537.9,3535.2,3.6942]
[1735917265108,48.43632619,3536.5,3535.2,3.6942]
[1735917265304,0.28303,3535.5,3535.4,0.28303]
[1735917265706,0.4869,3535.8,3535.2,0.4864]
[1735917265906,0.28304,3535.3,3535.2,0.76945]
[1735917266114,0.28306,3535.1,3535.0,0.28306]
[1735917266413,0.43567775,3535.6,3534.8,0.4842]
[1735917266613,3.91533,3535.7,3535.3,0.28303]
[1735917266808,0.28305,3535.3,3535.2,0.28305]
[1735917267517,5.22133,3535.7,3534.8,0.4842]
[1735917267710,0.28305,3535.3,3535.2,0.28304]
[1735917267914,0.28303,3535.4,3535.3,0.28303]
[1735917268103,4.91542619,3535.8,3535.2,3.2078]
[1735917268308,5.19842619,3535.8,3535.7,0.28301]
[1735917268503,4.91542619,3535.8,3535.2,3.2078]
[1735917268709,0.28302,3535.7,3535.6,0.28301]
[1735917269110,4.42852619,3535.8,3535.7,0.28301]
[1735917269317,4.42852619,3536.2,3535.6,3.2078]
[1735917269617,4.42852619,3536.2,3536.1,0.28298]
[1735917270811,0.4901,3536.3,3536.2,0.28297]
[1735917271306,4.42852619,3536.6,3536.5,0.28294]
[1735917272112,5.53565774,3537.4,3536.5,5.0]
[1735917272315,5.53565774,3537.4,3537.3,3.49068]
[1735917272715,5.53565774,3537.4,3537.3,3.97488]
[1735917273411,0.28284,3537.8,3537.7,0.28285]
[1735917273916,0.28285,3537.7,3537.6,0.28286]
[1735917274113,0.28287,3537.5,3537.4,0.28287]
[1735917274319,3.2078,3537.9,3536.9,3.2078]
[1735917274519,0.70711,3537.8,3537.1,0.28289]
[1735917274817,0.28289,3537.3,3537.1,0.28289]
[1735917275018,3.43493412,3537.9,3537.1,0.28289]
[1735917275215,3.43493412,3537.9,3536.9,3.2078]
[1735917275411,0.28288,3537.4,3537.1,0.2829]
[1735917275612,0.28287,3537.5,3537.0,0.2829]
[1735917275807,3.2078,3537.5,3536.8,2.97503458]
[1735917276207,0.2829,3537.1,3537.0,0.2829]
[1735917276514,2.21823412,3537.9,3536.9,3.2078]
[1735917276818,0.28285,3537.7,3537.6,0.28285]
[1735917277018,1.284,3537.9,3536.8,2.97503458]
[1735917277019,1.56684,3537.9,3537.3,3.2078]
[1735917277516,0.28284,3537.8,3537.3,3.2078]
[1735917277718,42.36684,3537.9,3537.7,0.28285]
[1735917277911,1.56684,3537.9,3537.8,0.28284]
[1735917278113,1.284,3537.9,3537.8,0.28284]
[1735917278817,41.58132,3538.1,3537.8,0.28284]
[1735917279016,41.58132,3538.1,3538.0,0.28282]
[1735917279017,41.2985,3538.1,3538.0,0.28282]
[1735917279212,40.8,3538.1,3538.0,0.28282]
[1735917279715,40.8,3538.1,3537.5,0.5022]
[1735917279716,44.0078,3538.1,3537.5,0.5022]
[1735917280120,40.8,3538.1,3537.5,0.5022]
[1735917280421,0.28283,3537.9,3537.5,0.5022]
[1735917280621,0.28285,3537.8,3537.7,0.28285]
[1735917280823,44.0078,3538.1,3537.5,0.5022]
[1735917281022,0.28284,3537.9,3537.8,0.28284]
[1735917281223,0.28283,3538.0,3537.5,0.5022]
[1735917281423,0.28283,3538.0,3537.9,0.28283]
[1735917281920,40.8,3538.1,3537.5,0.5022]
[1735917282125,41.08282,3538.1,3538.0,0.28282]
[1735917282618,0.28283,3538.0,3537.9,0.28283]
[1735917282818,41.08282,3538.1,3537.7,3.2078]
[1735917283020,0.28282,3538.1,3538.0,0.28282]
[1735917283524,40.8,3538.3,3537.7,3.2078]
[1735917283727,40.8,3538.3,3537.9,0.28283]
[1735917283927,0.28282,3538.1,3538.0,0.28282]
[1735917284329,40.8,3538.3,3537.7,3.2078]
[1735917284636,0.28283,3538.0,3537.8,0.28284]
[1735917284931,40.8,3538.3,3537.9,0.28283]
[1735917285226,0.28282,3538.1,3537.7,3.2078]
[1735917285419,0.28282,3538.1,3537.8,0.28284]
[1735917285620,40.8,3538.3,3538.2,0.28281]
[1735917285823,3.2078,3539.0,3538.3,0.98981]
[1735917286016,3.2078,3539.0,3538.4,0.4876]
[1735917286222,3.2078,3539.0,3538.5,0.28278]
[1735917286417,3.49054,3539.0,3538.8,0.28275]
[1735917286620,3.2078,3539.0,3538.4,0.4876]
[1735917286823,41.08276,3538.9,3538.7,0.28277]
[1735917287029,0.4811,3538.8,3538.4,0.4876]
[1735917287724,0.4811,3538.8,3538.2,3.2078]
[1735917288029,0.28277,3538.7,3538.2,0.2828]
[1735917288330,0.28278,3538.6,3538.4,0.28279]
[1735917288526,0.4811,3538.8,3538.0,3.2078]
[1735917288731,0.4811,3538.8,3538.0,5.69863458]
[1735917288928,0.4811,3538.8,3538.4,3.2078]
[1735917289129,0.28277,3538.7,3538.5,0.28278]
[1735917289433,0.76387,3538.8,3538.6,0.28278]
[1735917289726,0.4811,3538.8,3538.0,3.2078]
[1735917289928,3.2078,3538.6,3537.6,5.69863458]
[1735917290135,3.2078,3538.6,3538.1,0.28281]
[1735917290441,0.28281,3538.2,3538.1,0.28281]
[1735917290734,3.2078,3538.6,3538.1,0.28282]
[1735917290932,0.28281,3538.3,3538.1,0.28282]
[1735917291235,3.2078,3538.6,3538.1,0.28282]
[1735917291433,0.2828,3538.3,3538.1,0.28282]
[1735917291731,0.2828,3538.3,3538.1,0.28281]
[1735917291924,3.2078,3538.6,3538.1,0.28281]
[1735917291925,0.28281,3538.2,3538.1,0.28281]
[1735917292129,0.70697,3538.5,3537.6,5.69863458]
[1735917292330,0.28284,3537.8,3537.6,3.49065]
[1735917292634,0.28284,3537.9,3537.7,0.28285]
[1735917292837,0.28285,3537.8,3537.6,3.2078]
[1735917293039,0.483,3538.1,3537.3,0.5001]
[1735917293329,0.483,3538.1,3536.9,0.70729]
[1735917293330,3.2078,3537.4,3536.9,0.28291]
[1735917293536,0.28294,3536.6,3536.5,0.4967]
[1735917293725,0.28295,3536.5,3536.3,0.28296]
[1735917293930,3.2078,3537.0,3536.2,3.2078]
[1735917294130,0.28294,3536.6,3536.4,0.28295]
[1735917294534,0.28294,3536.6,3536.2,3.2078]
[1735917294726,0.28294,3536.6,3536.4,0.28295]
[1735917295134,0.28294,3536.6,3536.5,0.28294]
[1735917295432,0.28291,3536.9,3536.4,0.28295]
[1735917295632,3.2078,3537.0,3536.2,3.2078]
[1735917295837,0.28296,3536.3,3536.2,3.2078]
[1735917296039,40.8,3536.9,3536.2,3.2078]
[1735917296237,0.4992,3537.3,3536.2,3.2078]
[1735917296438,0.28291,3537.0,3536.8,0.28292]
[1735917296633,0.4992,3537.3,3536.6,3.2078]
[1735917297037,0.4992,3537.3,3537.0,0.2829]
[1735917297237,0.2829,3537.1,3537.0,0.2829]
[1735917297437,0.4992,3537.3,3536.6,3.2078]
[1735917297735,0.28289,3537.2,3537.1,0.28289]
[1735917297940,0.2829,3537.1,3537.0,0.2829]
[1735917298643,0.4992,3537.3,3536.6,3.2078]
[1735917298941,0.28289,3537.3,3537.2,0.28288]
[1735917299238,0.28289,3537.2,3537.1,0.28289]
[1735917299543,0.2829,3537.0,3536.9,0.28291]
[1735917299840,0.28289,3537.2,3537.1,0.28289]
[1735917300031,0.2829,3537.1,3537.0,0.2829]
[1735917301036,0.28286,3537.6,3537.5,0.28286]
[1735917301238,0.76325,3537.7,3537.6,0.28286]
[1735917301442,1.97603,3538.2,3537.5,0.28286]
[1735917301638,0.5035,3538.1,3537.5,0.4787]
[1735917301835,0.28285,3537.7,3537.6,0.28285]
[1735917302039,0.78632,3538.1,3537.6,0.28286]
[1735917302241,3.2078,3539.1,3538.0,3.2078]
[1735917302542,3.2078,3539.1,3538.4,3.49059]
[1735917302543,0.28278,3538.5,3538.4,3.49059]
[1735917303046,0.28278,3538.5,3538.4,3.2078]
[1735917303243,0.28278,3538.5,3538.0,5.69863458]
[1735917303446,0.28276,3538.8,3538.2,0.2828]
[1735917303744,0.70691,3538.9,3538.2,0.2828]
[1735917303745,0.2828,3538.4,3538.2,0.2828]
[1735917303947,0.28277,3538.7,3538.6,0.28277]
[1735917304143,0.28278,3538.6,3538.3,0.2828]
[1735917304450,0.2828,3538.3,3538.2,0.767]
[1735917304641,0.4748,3539.0,3538.2,0.4842]
[1735917304952,0.28277,3538.7,3538.6,0.28277]
[1735917305143,0.28277,3538.8,3538.3,0.2828]
[1735917305441,0.2828,3538.3,3538.2,0.2828]
[1735917305748,3.2078,3538.7,3537.8,2.49083458]
[1735917305936,0.70697,3538.5,3537.6,0.78005]
[1735917306143,0.28285,3537.7,3537.6,0.4972]
[1735917306343,0.28294,3536.6,3536.5,4.36124284]
[1735917306648,0.28291,3537.0,3536.8,0.28292]
[1735917306839,0.2829,3537.1,3537.0,0.2829]
[1735917307040,3.2078,3537.4,3536.5,10.05987742]
[1735917307237,0.28291,3537.0,3536.9,0.28291]
[1735917307442,3.2078,3537.4,3536.5,5.69863458]
[1735917307443,44.0078,3537.4,3536.5,5.69863458]
[1735917307646,40.8,3537.4,3536.5,6.19583458]
[1735917307843,0.5011,3537.6,3536.9,5.69863458]
[1735917308045,0.70704,3538.2,3537.7,0.28284]